Workbook

Sheet 1-MPN
V2: CÓDIGO EM VBA PRA DESPROTEGER QUALQUER PLANILHA
B7: CLIQUE AQUI E SELECIONE A MODALIDADE DO AUXÍLIO SOLICITADO
B9: 1- MATERIAL PERMANENTE NACIONAL
B11: NOME DO INTERESSADO:
B13: PROCESSO:
B15: TOTAL: | D15: =IF(SUM(N20:N49,N56:N92)=0,"",SUM(N20:N49,N56:N92)) -> 
B17: item | C17: quant. | D17: descrição (somente 1 linha para cada item) | L17: referência do orçamento | M17: preço unitário | N17: custo do item | O17: FAPESP
O19: CONCEDIDO? | P19: ALÍNEA
N20: =IF(C20=0,"",C20*M20) ->  | O20: NÃO | S20: DOCUMENTAÇÃO
O21: NÃO | S21: AS CÉLULAS COM FUNDO CINZA CONTEM FORMULAS (ESTÃO PROTEGIDAS). AS COM FUNDO AMARELO SÃO DESPROTEGIDAS
O22: NÃO | S22: AS CORES SÃO DEFINIDAS POR FORMATAÇÃO CONDICIONAL
O23: NÃO | S23: CONTÉM FÓRMULAS DE TOTALIZAÇÃO
O24: NÃO
O25: NÃO | S25: IMAGENS NA PLANILHA
O26: NÃO | S26: A IMAGEM PARA IR À INSTRUÇÃO PARA PREENCHIMENTO TEM LINK PARA A LINHA 184
O27: NÃO | S27: SOMENTE A IMAGEM DE 50 ANOS DA FAPESP SERÁ IMPRESSA, AS DEMAIS SÃO INFORMATIVAS
O28: NÃO
O29: NÃO | S29: COMUNICAÇAO ENTRE AS PLANILHAS
O30: NÃO | S30: A ÚNICA PLANILHA QUE SE COMUNICA COM TODAS AS OUTRAS É A CONSOLIDADA, O MÊS DEVE SER INSERIDO SOMENTE EM 1-MPN
O31: NÃO
O32: NÃO | S32: INFORMAÇÕES GERAIS
O33: NÃO | S33: AS PLANILHAS FORAM VERTICALIZADAS ENTRE MAIO E JUNHO DE 2010
O34: NÃO | S34: NAS PLANILHAS "NACIONAIS", AS DUAS PÁGINAS TEM 47 LINHAS
O35: NÃO | S35: NAS PLANILAS "INTERNACIONAIS", A PRIMEIRA PÁGINA TEM 40 LINHAS E A SEGUNDA 47.
O36: NÃO | S36: AS LINHAS DE TODAS AS PLANILHAS TEM ALTURA DE "23,25".
O37: NÃO | S37: ELAS FORAM FORMATADAS PRA APARECER INTEGRALMENTE NA TELA COM ZOOM DE 100%
O38: NÃO
O39: NÃO | S39: CONFIGURAÇÃO DE MARGEM
O40: NÃO | S40: 1
O41: NÃO | S41: 1,9 0,7
O42: NÃO | S42: 1
O43: NÃO | S43: CLIQUE AQUI E SELECIONE A MODALIDADE DO AUXÍLIO SOLICITADO
O44: NÃO | R44: 46 | S44: AUXÍLIO À PESQUISA - PROJETO TEMÁTICO
O45: NÃO | R45: 47 | S45: AUXÍLIO À PESQUISA - JOVENS PESQUISADORES
O46: NÃO | R46: 48 | S46: AUXÍLIO À PESQUISA - ENSINO PÚBLICO
O47: NÃO | R47: 49 | S47: AUXÍLIO À PESQUISA - POLÍTICAS PÚBLICAS
O48: NÃO | R48: 50 | S48: AUXÍLIO À PESQUISA - REGULAR
O49: NÃO
B51: - JUSTIFIQUE EM ANEXO A UTILIDADE DE CADA MATERIAL SOLICITADO PARA O DESENVOLVIMENTO DO PROJETO DE PESQUISA PROPOSTO.
B52: FAPESP, AGOSTO DE 2017 | P52: 1
B53: MATERIAL PERMANENTE NACIONAL | AG53: Valores vigentes a partir de 1º/4/2011
B54: item | C54: quant. | D54: descrição (somente 1 linha para cada item) | L54: referência do orçamento | M54: preço unitário | N54: custo do item | O54: FAPESP
O55: CONCEDIDO? | P55: ALÍNEA | AG55: 502.8
N56: =IF(C56=0,"",C56*M56) ->  | O56: NÃO | AG56: 1477.2
O57: NÃO | AG57: 1568.4
O58: NÃO | AG58: 2177.7
O59: NÃO | AG59: 2695.2
O60: NÃO | AG60: 5333.4
O61: NÃO
O62: NÃO | AG62: 317.4
O63: NÃO | AG63: 634.8
N64: =IF(C64=0,"",C64*M64) ->  | O64: NÃO | AG64: 634.8
O65: NÃO | AG65: 888.3
O66: NÃO | AG66: 2246.1
O67: NÃO | AG67: 3679.8
O68: NÃO | AG68: 5333.4
O69: NÃO | AG69: 507.6
O70: NÃO | AG70: 761.4
O71: NÃO | AG71: US$ 1.200,00
O72: NÃO
O73: NÃO | AG73: 6060.3
O74: NÃO
O75: NÃO | AG75: 228.6
O76: NÃO | AG76: 456.9
O77: NÃO | AG77: 685.5
O78: NÃO | AG78: 913.5
O79: NÃO | AG79: 1142.4
O80: NÃO | AG80: 1827.3
O81: NÃO
O82: NÃO | AG82: 2928
O83: NÃO | AG83: 4332.9
O84: NÃO | AG84: 6060.3
O85: NÃO
O86: NÃO | AG86: 502.8
O87: NÃO | AG87: 1477.2
O88: NÃO | AG88: 2177.7
O89: NÃO | AG89: 5333.4
O90: NÃO
O91: NÃO
O92: NÃO
B94: - JUSTIFIQUE EM ANEXO A UTILIDADE DE CADA MATERIAL SOLICITADO PARA O DESENVOLVIMENTO DO PROJETO DE PESQUISA PROPOSTO.
B95: =B52 -> FAPESP, AGOSTO DE 2017 | P95: 2
B140: PARA IMPRIMIR A INSTRUÇÃO ABAIXO, SELECIONE A ÁREA A SER IMPRESSA
B141: DIGITE "CTRL" P, E DEPOIS CLIQUE EM SELEÇÃO.
B144: INSTRUÇÕES PARA PREENCHIMENTO – LEIA ATENTAMENTE AS INSTRUÇÕES ABAIXO.
B145: MATERIAL PERMANENTE NACIONAL (MPN)
B147: NÃO SERÃO ACEITOS FORMULÁRIOS PREENCHIDOS EM DESACORDO COM ESTA INSTRUÇÃO
B149: - Não incluir aquisição de publicações, materiais administrativos (móveis, etc.). O Auxílio destina-se exclusivamente a materiais de pesquisa.
B150: - Devem ser incluídos neste formulário, todos os materiais permanentes que se pretendam adquirir no Brasil, independente de serem eles de fabricação estrangeira ou nacional.
B151: - Coluna (item) - cada material solicitado deve ser numerado seqüencialmente. Considere um item para cada material (equipamento e componentes) e um sub-item para cada
B152: um dos seus acessórios, deixando claro quais são os acessórios correspondentes a um determinado item, com letras seqüenciais. (Ver exemplo abaixo).
B153: - Coluna (quant.) - quantidade de cada um dos itens solicitados.
B154: - Coluna (descrição) - descreva os materiais a serem adquiridos, indicando nome, modelo, tipo, etc. Toda a descrição deve ser feita em PORTUGUÊS.
B155: - Coluna (referência do orçamento) - número do orçamento (faça a correlação entre o item solicitado e o orçamento apresentado).
B156: - Coluna (preço unitário)- valor unitário em moeda nacional
B157: - Coluna (custo do item) - total parcial em moeda nacional, do material solicitado em cada item. (O preenchimento e totalização desta coluna é automático).
B158: - Coluna (FAPESP) - para uso exclusivo da FAPESP.
B160: OBSERVAÇÕES:
B161: 1) Três orçamentos (não é necessário apresentar proformas na submissão) para cada um dos itens de Material Permanente Nacional ou Importado cujo valor supere dez vezes o salário mínimo nacional.
B162: 2) Recomenda-se uma verificação de preços antes da solicitação, a fim de evitar alterações no decorrer do projeto e demoras indesejáveis.
B163: 3) Justifique em anexo a utilidade de cada material solicitado para o desenvolvimento do projeto de pesquisa proposto.
B165: EXEMPLO | D165: TOTAL | E165: =SUM(N169:P173) -> 1834
B167: item | C167: quant. | D167: descrição (somente 1 linha para cada item) | L167: referência do orçamento | M167: preço unitário | N167: custo do item | O167: FAPESP
O168: CONCEDIDO? | P168: ALÍNEA
B169: 1 | C169: 1 | D169: Cuba de eletroforese horizontal | M169: 500 | N169: =IF(C169=0,0,C169*M169) -> 500 | O169: NÃO
B170: 1a | C170: 2 | D170: Pente 30 dentes, 1 mm espessura, para uso com a cuba acima | M170: 46 | N170: =IF(C170=0,0,C170*M170) -> 92 | O170: NÃO
B171: 1b | C171: 2 | D171: Pente 30 dentes, 2 mm espessura, para uso com a cuba acima | M171: 46 | N171: =IF(C171=0,0,C171*M171) -> 92 | O171: NÃO
B172: 2 | C172: 1 | D172: Transdutor ultrasônico | M172: 1100 | N172: =IF(C172=0,0,C172*M172) -> 1100 | O172: NÃO
B173: 2a | C173: 1 | D173: cabo padrão a prova d'água | M173: 50 | N173: =IF(C173=0,0,C173*M173) -> 50 | O173: NÃO
B174: =B94 -> - JUSTIFIQUE EM ANEXO A UTILIDADE DE CADA MATERIAL SOLICITADO PARA O DESENVOLVIMENTO DO PROJETO DE PESQUISA PROPOSTO.

Sheet 2-MPI
B6: 2- MATERIAL PERMANENTE IMPORTADO
B8: NOME DO INTERESSADO:
B10: PROCESSO:
B12: CÂMBIO (INFORME A SIGLA DA MOEDA E O VALOR DE SUA TAXA EM DÓLAR)
B14: MOEDA 1: | D14: USD | E14: TAXA: | F14: 1 | I14: MOEDA 2: | L14: TAXA: | O14: MOEDA 3: | R14: TAXA:
B16: MOEDA 4: | E16: TAXA: | I16: MOEDA 5: | L16: TAXA: | O16: MOEDA 6: | R16: TAXA:
B18: TOTAL: | D18: =IF(SUM(Q22:S54,Q61:S99)=0,"",SUM(Q22:S54,Q61:S99)) -> 
B20: item | C20: quant. | D20: descrição (somente 1 linha para cada item) | L20: referência do orçamento | M20: moeda de origem | N20: preço unitário | O20: custo do item moeda original | Q20: custo do item US$ | T20: FAPESP
T21: CONCEDIDO? | U21: ALÍNEA
O22: =IF(C22*N22=0,"",C22*N22) ->  | Q22: =IF(ISERROR(INDEX($X$22:$X$27,MATCH(M22,$W$22:$W$27,0))*O22),"",INDEX($X$22:$X$27,MATCH(M22,$W$22:$W$27,0))*O22) ->  | T22: NÃO | W22: =D14 -> USD | X22: =F14 -> 1
O23: =IF(C23*N23=0,"",C23*N23) ->  | T23: NÃO | W23: =IF(K14=0,"",K14) ->  | X23: =M14 -> 0
T24: NÃO | W24: =IF(Q14=0,"",Q14) ->  | X24: =S14 -> 0
T25: NÃO | W25: =IF(D16=0,"",D16) ->  | X25: =F16 -> 0
T26: NÃO | W26: =IF(K16=0,"",K16) ->  | X26: =M16 -> 0
T27: NÃO | W27: =IF(Q16=0,"", Q16) ->  | X27: =S16 -> 0
T28: NÃO
T29: NÃO
T30: NÃO
T31: NÃO
T32: NÃO
T33: NÃO
T34: NÃO
T35: NÃO
T36: NÃO
T37: NÃO
T38: NÃO
T39: NÃO
T40: NÃO
T41: NÃO
T42: NÃO
T43: NÃO
T44: NÃO
T45: NÃO
T46: NÃO
T47: NÃO
T48: NÃO
T49: NÃO
T50: NÃO
T51: NÃO
T52: NÃO
T53: NÃO
T54: NÃO
B56: - JUSTIFIQUE EM ANEXO A UTILIDADE DE CADA MATERIAL SOLICITADO PARA O DESENVOLVIMENTO DO PROJETO DE PESQUISA PROPOSTO.
B57: ='1-MPN'!B95 -> FAPESP, AGOSTO DE 2017 | U57: 1
B58: MATERIAL PERMANENTE IMPORTADO
B59: item | C59: quant. | D59: descrição (somente 1 linha para cada item) | L59: referência do orçamento | M59: moeda de origem | N59: preço unitário | O59: custo do item moeda original | Q59: custo do item US$ | T59: FAPESP
T60: CONCEDIDO? | U60: ALÍNEA
O61: =IF(C61*N61=0,"",C61*N61) ->  | Q61: =IF(ISERROR(INDEX($X$22:$X$27,MATCH(M61,$W$22:$W$27,0))*O61),"",INDEX($X$22:$X$27,MATCH(M61,$W$22:$W$27,0))*O61) ->  | T61: NÃO
Q62: =IF(ISERROR(INDEX($X$22:$X$27,MATCH(M62,$W$22:$W$27,0))*O62),"",INDEX($X$22:$X$27,MATCH(M62,$W$22:$W$27,0))*O62) ->  | T62: NÃO
T63: NÃO
T64: NÃO
T65: NÃO
T66: NÃO
T67: NÃO
T68: NÃO
T69: NÃO
T70: NÃO
T71: NÃO
T72: NÃO
T73: NÃO
T74: NÃO
T75: NÃO
T76: NÃO
T77: NÃO
T78: NÃO
T79: NÃO
T80: NÃO
T81: NÃO
T82: NÃO
T83: NÃO
T84: NÃO
T85: NÃO
T86: NÃO
T87: NÃO
T88: NÃO
T89: NÃO
T90: NÃO
T91: NÃO
T92: NÃO
T93: NÃO
T94: NÃO
T95: NÃO
T96: NÃO
T97: NÃO
T98: NÃO
T99: NÃO
B101: =B56 -> - JUSTIFIQUE EM ANEXO A UTILIDADE DE CADA MATERIAL SOLICITADO PARA O DESENVOLVIMENTO DO PROJETO DE PESQUISA PROPOSTO.
B102: =B57 -> FAPESP, AGOSTO DE 2017 | S102: 7 | U102: 2
B138: PARA IMPRIMIR A INSTRUÇÃO ABAIXO, SELECIONE A ÁREA A SER IMPRESSA
B139: DIGITE "CTRL" P, E DEPOIS CLIQUE EM SELEÇÃO.
C143: FORMULÁRIO 2 - INSTRUÇÕES PARA PREENCHIMENTO – LEIA ATENTAMENTE AS INSTRUÇÕES ABAIXO.
C144: MATERIAL PERMANENTE IMPORTADO (MPI)
B146: NÃO SERÃO ACEITOS FORMULÁRIOS PREENCHIDOS EM DESACORDO COM ESTA INSTRUÇÃO
B148: - Não incluir aquisição de publicações, materiais administrativos, etc. O Auxílio destina-se exclusivamente a materiais de pesquisa.
B149: - Devem ser incluídos nesta folha todos os materiais permanentes que se pretendam adquirir diretamente no exterior (importação direta).
B150: - Coluna (item) - cada material solicitado deve ser numerado seqüencialmente. Considere um item para cada material (equipamento e componentes) e um sub-item para
B151: cada um dos seus acessórios, deixando claro quais são os acessórios correspondentes a um determinado item (Ver exemplo abaixo)
B152: - Coluna (quant.) - quantidade de cada um dos itens solicitados.
B153: - Coluna (descrição) - descreva os materiais que se pretende adquirir, indicando nome, modelo, tipo, etc. e país de procedência, descreva despesas cobradas pelo
B154: exportador (ex.: embalagem, documentação, etc). Toda a descrição deve ser feita em PORTUGUÊS.
B155: - Coluna (referência do orçamento) - faça a correlação entre o item solicitado e o orçamento apresentado.
B156: - Coluna (moeda de origem) – indique a moeda de origem, como fornecido no orçamento do exportador/representante autorizado.
B157: - Coluna (preço unitário) – valor unitário do item, na moeda de origem (indicar a moeda na coluna anterior).
B158: - Coluna (custo do item-moeda original) - custo total parcial,na moeda de origem,do material solicitado em cada item.
B159: Não incluir despesas como embalagem. Frete interno, etc..,
B160: - Coluna (custo do item - US$) conversão automática para dólar americano, do valor calculado na coluna anterior.
B161: - Coluna (FAPESP) – para uso exclusivo da FAPESP.
B163: OBSERVAÇÕES:
B164: 1) Três orçamentos (não é necessário apresentar proformas na submissão) para cada um dos itens de Material Permanente Nacional ou Importado cujo valor supere dez vezes o salário mínimo nacional.
B165: 2) Todo valor remetido ao exterior é deduzido dos recursos concedidos;
B166: 3 Justifique em anexo a utilidade de cada material solicitado para o desenvolvimento do projeto de pesquisa proposto;
B167: 4) Despesas com importação devem ser inseridas logo após a descrição de cada item (Ver exemplo abaixo).
B169: EXEMPLO | D169: TOTAL | F169: =SUM(Q173:Q176) -> 1567.369
B171: item | C171: quant. | D171: descrição (somente 1 linha para cada item) | L171: referência do orçamento | M171: moeda de | N171: preço | O171: custo do item moeda original | Q171: custo do item | S171: FAPESP
M172: origem | N172: unitário | Q172: US$ | S172: CONCEDIDO? | U172: ALÍNEA
B173: 1 | C173: 1 | D173: CUBA DE ELETROFORESE HORIZONTAL, PROCEDÊNCIA ALEMÃ | M173: EUR | N173: 1000 | O173: =N173*C173 -> 1000 | Q173: 1240 | S173: NÃO
B174: 1a | C174: 2 | D174: PENTE 30 DENTES, MM ESPESSURA, PARA USO COM A CUBA ACIMA, PROC. ALEMÃ | M174: EUR | N174: 92 | O174: =N174*C174 -> 184 | Q174: 228.169 | S174: NÃO
B175: 1b | C175: 1 | D175: PENTE 30 DENTES, 2 MM ESPESSURA PARA USO COM A CUBA ACIMA PROC. ALEMÃ | M175: EUR | N175: 40 | O175: =N175*C175 -> 40 | Q175: 49.6 | S175: NÃO
B176: 1c | C176: 1 | D176: DESPESAS COM FRETE, EMBALAGEM, DOCUMENTAÇÃO | M176: EUR | N176: 40 | O176: =N176*C176 -> 40 | Q176: 49.6 | S176: NÃO
B177: =B101 -> - JUSTIFIQUE EM ANEXO A UTILIDADE DE CADA MATERIAL SOLICITADO PARA O DESENVOLVIMENTO DO PROJETO DE PESQUISA PROPOSTO.

Sheet 3-MCN
B6: 3- MATERIAL DE CONSUMO A SER ADQUIRIDO NO BRASIL
B8: NOME DO INTERESSADO:
B10: PROCESSO:
B12: TOTAL: | D12: =IF(SUM(K17:K47,K55:K88,K96:K129)=0,"",SUM(K17:K47,K55:K88,K96:K129)) -> 
B15: item | C15: descrição (somente 1 linha para cada item) | K15: custo do item | L15: FAPESP
L16: CONCEDIDO? | M16: ALÍNEA
L17: NÃO
L18: NÃO
L19: NÃO
L20: NÃO
L21: NÃO
L22: NÃO
L23: NÃO
L24: NÃO
L25: NÃO
L26: NÃO
L27: NÃO
L28: NÃO
L29: NÃO
L30: NÃO
L31: NÃO
L32: NÃO
L33: NÃO
L34: NÃO
L35: NÃO
L36: NÃO
L37: NÃO
L38: NÃO
L39: NÃO
L40: NÃO
L41: NÃO
L42: NÃO
L43: NÃO
L44: NÃO
L45: NÃO
L46: NÃO
L47: NÃO
B49: - JUSTIFIQUE EM ANEXO A UTILIDADE DE CADA MATERIAL SOLICITADO PARA O DESENVOLVIMENTO DO PROJETO DE PESQUISA
B50: ='1-MPN'!B52 -> FAPESP, AGOSTO DE 2017 | M50: 1
B52: =B6 -> 3- MATERIAL DE CONSUMO A SER ADQUIRIDO NO BRASIL
B53: item | C53: descrição (somente 1 linha para cada item) | K53: custo do item | L53: FAPESP
L54: CONCEDIDO? | M54: ALÍNEA
L55: NÃO
L56: NÃO
L57: NÃO
L58: NÃO
L59: NÃO
L60: NÃO
L61: NÃO
L62: NÃO
L63: NÃO
L64: NÃO
L65: NÃO
L66: NÃO
L67: NÃO
L68: NÃO
L69: NÃO
L70: NÃO
L71: NÃO
L72: NÃO
L73: NÃO
L74: NÃO
L75: NÃO
L76: NÃO
L77: NÃO
L78: NÃO
L79: NÃO
L80: NÃO
L81: NÃO
L82: NÃO
L83: NÃO
L84: NÃO
L85: NÃO
L86: NÃO
L87: NÃO
L88: NÃO
B90: - JUSTIFIQUE EM ANEXO A UTILIDADE DE CADA MATERIAL SOLICITADO PARA O DESENVOLVIMENTO DO PROJETO DE PESQUISA
B91: =B50 -> FAPESP, AGOSTO DE 2017 | M91: 2
B93: =B52 -> 3- MATERIAL DE CONSUMO A SER ADQUIRIDO NO BRASIL
B94: item | C94: descrição (somente 1 linha para cada item) | K94: custo do item | L94: FAPESP
L95: CONCEDIDO? | M95: ALÍNEA
L96: NÃO
L97: NÃO
L98: NÃO
L99: NÃO
L100: NÃO
L101: NÃO
L102: NÃO
L103: NÃO
L104: NÃO
L105: NÃO
L106: NÃO
L107: NÃO
L108: NÃO
L109: NÃO
L110: NÃO
L111: NÃO
L112: NÃO
L113: NÃO
L114: NÃO
L115: NÃO
L116: NÃO
L117: NÃO
L118: NÃO
L119: NÃO
L120: NÃO
L121: NÃO
L122: NÃO
L123: NÃO
L124: NÃO
L125: NÃO
L126: NÃO
L127: NÃO
L128: NÃO
L129: NÃO
B131: - JUSTIFIQUE EM ANEXO A UTILIDADE DE CADA MATERIAL SOLICITADO PARA O DESENVOLVIMENTO DO PROJETO DE PESQUISA
B132: =B91 -> FAPESP, AGOSTO DE 2017 | M132: 3
B146: PARA IMPRIMIR A INSTRUÇÃO ABAIXO, SELECIONE A ÁREA A SER IMPRESSA
B147: DIGITE "CTRL" P, E DEPOIS CLIQUE EM SELEÇÃO.
B151: FORMULÁRIO 3 - INSTRUÇÕES PARA PREENCHIMENTO – LEIA ATENTAMENTE AS INSTRUÇÕES ABAIXO.
B152: MATERIAL DE CONSUMO A SER ADQUIRIDO NO BRASIL (MCN)
B154: NÃO SERÃO ACEITOS FORMULÁRIOS PREENCHIDOS EM DESACORDO COM ESTA INSTRUÇÃO
B156: - A FAPESP somente autoriza a aquisição de produtos para uso exclusivo na pesquisa/programa objeto desta solicitação, excluindo-se materiais de
B157: escritório, insumos computacionais, etc.
B158: - Não solicitar recursos sem especificar o que se pretende adquirir (Itens como "diversos", "outros materiais", etc., não serão considerados).
B159: - Os produtos devem ser agrupados por tipo, não havendo necessidade de detalhamento dos mesmos (Ver exemplo abaixo).
B160: - Coluna (item) - cada grupo de materiais deve ser numerado seqüencialmente. Considere um item para cada grupo.
B161: - Coluna (decrição)- descreva o grupo de material que se pretende adquirir,como exemplificado abaixo. Toda a descrição deve ser feita em PORTUGUÊS.
B162: - Coluna (custo do item) - custo total do material solicitado em cada item
B163: - Coluna (FAPESP) - para uso exclusivo da FAPESP.
B165: OBSERVAÇÕES
B167: 1) Recomenda-se uma verificação de preços antes da solicitação, a fim de evitar alterações no decorrer do projeto e demoras indesejáveis.
B168: 2) Justifique em anexo a utilidade de cada grupo de materiais solicitado para o desenvolvimento do projeto de pesquisa proposto.
B170: EXEMPLO | D170: TOTAL: | E170: =SUM(K174:K178) -> 17400
B172: item | C172: descrição (somente 1 linha para cada item) | L172: FAPESP
L173: CONCEDIDO? | M173: ALÍNEA
B174: 1 | C174: Vidraria para laboratório | K174: 2000 | L174: NÃO
B175: 2 | C175: Reagentes | K175: 3000 | L175: NÃO
B176: 3 | C176: Tubos para centrífuga | K176: 5000 | L176: NÃO
B177: 4 | C177: Material plástico descartável | K177: 800 | L177: NÃO
B178: 5 | C178: Material radioativo | K178: 6600 | L178: NÃO
B180: - JUSTIFIQUE EM ANEXO A UTILIDADE DE CADA MATERIAL SOLICITADO PARA O DESENVOLVIMENTO DO PROJETO DE PESQUISA
B181: =B132 -> FAPESP, AGOSTO DE 2017

Sheet 4-MCI
A1: MM
B6: 4- MATERIAL DE CONSUMO IMPORTADO
B8: NOME DO INTERESSADO:
B10: PROCESSO:
B12: CÂMBIO (INFORME A SIGLA DA MOEDA E O VALOR DE SUA TAXA EM DÓLAR)
B14: MOEDA 1: | C14: USD | D14: TAXA: | E14: 1 | H14: MOEDA 2: | J14: TAXA: | O14: MOEDA 3: | Q14: TAXA:
B16: MOEDA 4: | D16: TAXA: | H16: MOEDA 5: | J16: TAXA: | O16: MOEDA 6: | Q16: TAXA:
B18: TOTAL: | D18: =IF(SUM(Q22:R47,Q54:R86)=0,"",SUM(Q22:R47,Q54:R86)) -> 
B20: item | C20: descrição (somente 1 linha para cada item) | M20: moeda de origem | N20: custo do item moeda original | Q20: custo do item US$ | S20: FAPESP
S21: CONCEDIDO? | T21: ALÍNEA
Q22: =IF(ISERROR(INDEX($W$22:$W$27,MATCH(M22,$V$22:$V$27,0))*N22),"",INDEX($W$22:$W$27,MATCH(M22,$V$22:$V$27,0))*N22) ->  | S22: NÃO | V22: =IF($C$14=0,"",C$14) -> USD | W22: =IF(E14=0,"",E14) -> 1
Q23: =IF(ISERROR(INDEX($W$22:$W$27,MATCH(M23,$V$22:$V$27,0))*N23),"",INDEX($W$22:$W$27,MATCH(M23,$V$22:$V$27,0))*N23) ->  | S23: NÃO | V23: =IF($I$14=0,"",$I$14) ->  | W23: =IF(K14=0,"",K14) -> 
S24: NÃO | V24: =IF($P$14=0,"",$P$14) ->  | W24: =IF(R14=0,"",R14) -> 
S25: NÃO | V25: =IF($C$16=0,"",$C$16) ->  | W25: =IF(E16=0,"",E16) -> 
S26: NÃO | V26: =IF(I16=0,"",I16) ->  | W26: =IF(K16=0,"",K16) -> 
S27: NÃO | V27: =IF($P$16=0,"",$P$16) ->  | W27: =IF(R16=0,"",R16) -> 
S28: NÃO
S29: NÃO
S30: NÃO
S31: NÃO
S32: NÃO
S33: NÃO
S34: NÃO
S35: NÃO
S36: NÃO
S37: NÃO
S38: NÃO
S39: NÃO
S40: NÃO
S41: NÃO
S42: NÃO
S43: NÃO
S44: NÃO
S45: NÃO
S46: NÃO
S47: NÃO
B49: - JUSTIFIQUE EM ANEXO A UTILIDADE DE CADA MATERIAL SOLICITADO PARA O DESENVOLVIMENTO DO PROJETO DE PESQUISA
B50: ='3-MCN'!B50 -> FAPESP, AGOSTO DE 2017 | Q50: 1
B51: =B6 -> 4- MATERIAL DE CONSUMO IMPORTADO
B52: item | C52: descrição (somente 1 linha para cada item) | M52: moeda de origem | N52: custo do item moeda original | Q52: custo do item US$ | S52: FAPESP
S53: CONCEDIDO? | T53: ALÍNEA
Q54: =IF(ISERROR(INDEX($W$22:$W$27,MATCH(M54,$V$22:$V$27,0))*N54),"",INDEX($W$22:$W$27,MATCH(M54,$V$22:$V$27,0))*N54) ->  | S54: NÃO
S55: NÃO
S56: NÃO
S57: NÃO
S58: NÃO
S59: NÃO
S60: NÃO
S61: NÃO
S62: NÃO
S63: NÃO
S64: NÃO
S65: NÃO
S66: NÃO
S67: NÃO
S68: NÃO
S69: NÃO
S70: NÃO
S71: NÃO
S72: NÃO
S73: NÃO
S74: NÃO
S75: NÃO
S76: NÃO
S77: NÃO
S78: NÃO
S79: NÃO
S80: NÃO
S81: NÃO
S82: NÃO
S83: NÃO
S84: NÃO
S85: NÃO
S86: NÃO
B88: - JUSTIFIQUE EM ANEXO A UTILIDADE DE CADA MATERIAL SOLICITADO PARA O DESENVOLVIMENTO DO PROJETO DE PESQUISA
B89: =B50 -> FAPESP, AGOSTO DE 2017 | Q89: 2
B135: PARA IMPRIMIR A INSTRUÇÃO ABAIXO, SELECIONE A ÁREA A SER IMPRESSA
B136: DIGITE "CTRL" P, E DEPOIS CLIQUE EM SELEÇÃO.
B140: FORMULÁRIO 4 - INSTRUÇÕES PARA PREENCHIMENTO – LEIA ATENTAMENTE AS INSTRUÇÕES ABAIXO.
B141: MATERIAL DE CONSUMO IMPORTADO (MCI)
B143: NÃO SERÃO ACEITOS FORMULÁRIOS PREENCHIDOS EM DESACORDO COM ESTA INSTRUÇÃO
B145: - A FAPESP somente autoriza a aquisição de produtos para uso exclusivo na pesquisa/programa objeto desta solicitação, excluindo-se materiais de escritório, insumos
B146: computacionais, etc.
B147: - Não solicitar recursos sem especificar o que se pretende adquirir (itens como "diversos", "outros materiais", etc, não serão considerados).
B148: - Os produtos devem ser agrupados por tipo, não havendo necessidade de detalhamento dos mesmos.
B149: - Coluna (item) - cada grupo de materiais deve ser numerado sequencialmente. Considere um item para cada grupo.
B150: - Coluna (descrição) - descreva o grupo de material que se pretende adquirir. Descreva despesas cobradas pelo exportador (ex.: embalagem, documentação, etc).
B151: Toda a descrição deve ser feita em PORTUGUÊS, (Ver exemplo abaixo).
B152: - Coluna (moeda de origem) - indique a moeda de origem, como fornecido no orçamento do exportador/representante autorizado.
B153: - Coluna (custo do item - moeda original) - custo total do material solicitado em cada item a moeda original.
B154: - Coluna (custo do item US$) - conversão automática para dólar americano, do valor informado na coluna anterior.
B155: - Coluna (FAPESP) - para uso exclusivo da FAPESP.
B157: OBSERVAÇÕES:
B158: 1) Todo o valor remetido ao exterior é deduzido dos recursos concedidos;
B159: 2) Justifique em anexo a utilidade de cada grupo de material solicitado para o desenvolvimento do projeto de pesquisa proposto.
B161: EXEMPLO :
B163: CÂMBIO (DIGITE A SIGLA DA MOEDA E O VALOR DE SUA TAXA EM DÓLAR)
B165: MOEDA 1: | C165: USD | D165: TAXA: | E165: 1 | H165: MOEDA 2: | I165: DEM | J165: TAXA: | K165: 1.83487 | O165: MOEDA 3: | P165: GBP | Q165: TAXA: | R165: 1.74
B167: TOTAL | C167: =SUM(Q171:R176) -> 76128.7563
B169: item | C169: descrição (somente 1 linha para cada item) | M169: moeda de origem | N169: custo do item moeda original | Q169: custo do item US$ | S169: FAPESP
S170: CONCEDIDO? | T170: ALÍNEA
B171: 1 | C171: Vidraria, procedência alemã | M171: DEM | N171: 10000 | Q171: =N171*$K$165 -> 18348.7 | S171: NÃO
B172: 1a | C172: Despesas com frete, embalagem, documentação | M172: DEM | N172: =N171-1234 -> 8766 | Q172: 16084.47042 | S172: NÃO
B173: 2 | C173: Vidraria, procedência americana | M173: USD | N173: =N172-1234 -> 7532 | Q173: 13820.24084 | S173: NÃO
B174: 2a | C174: Despesas com frete, embalagem, documentação | M174: USD | N174: =N173-1234 -> 6298 | Q174: 11556.01126 | S174: NÃO
B175: 3 | C175: Isótopos radiotivos, procedência inglesa | M175: GBP | N175: =N174-1234 -> 5064 | Q175: 9291.78168 | S175: NÃO
B176: 3a | C176: Despesas com frete, embalagem, documentação | M176: GBP | N176: =N175-1234 -> 3830 | Q176: 7027.5521 | S176: NÃO
B178: - JUSTIFIQUE EM ANEXO A UTILIDADE DE CADA MATERIAL SOLICITADO PARA O DESENVOLVIMENTO DO PROJETO DE PESQUISA
B179: =B89 -> FAPESP, AGOSTO DE 2017

Sheet 5-STB
B6: 5- SERVIÇOS DE TERCEIROS NO BRASIL
B8: NOME DO INTERESSADO:
B10: PROCESSO:
B12: TOTAL: | D12: =IF(SUM(O16:O46,O53:O86)=0,"",SUM(O16:O46,O53:O86)) -> 
B14: item | D14: quant. | E14: descrição (somente 1 linha para cada item) | N14: preço unitário | O14: custo do item | P14: FAPESP
P15: CONCEDIDO? | Q15: ALÍNEA
O16: =IF(N16*D16=0,"",N16*D16) ->  | P16: NÃO
P17: NÃO
P18: NÃO
P19: NÃO
P20: NÃO
P21: NÃO
P22: NÃO
P23: NÃO
P24: NÃO
P25: NÃO
P26: NÃO
P27: NÃO
P28: NÃO
P29: NÃO
P30: NÃO
P31: NÃO
P32: NÃO
P33: NÃO
P34: NÃO
P35: NÃO
P36: NÃO
P37: NÃO
P38: NÃO
P39: NÃO
P40: NÃO
P41: NÃO
P42: NÃO
P43: NÃO
P44: NÃO
P45: NÃO
P46: NÃO
B48: - JUSTIFIQUE EM ANEXO A UTILIDADE DOS SERVIÇOS SOLICITADOS PARA O DESENVOLVIMENTO DO PROJETO DE PESQUISA
B49: ='1-MPN'!B52 -> FAPESP, AGOSTO DE 2017 | O49: 1
B50: =B6 -> 5- SERVIÇOS DE TERCEIROS NO BRASIL
B51: Item | D51: Quant. | E51: descrição (somente 1 linha para cada item) | N51: preço unitário | O51: custo do item | P51: FAPESP
P52: CONCEDIDO? | Q52: ALÍNEA
O53: =IF(N53*D53=0,"",N53*D53) ->  | P53: NÃO
P54: NÃO
P55: NÃO
P56: NÃO
P57: NÃO
P58: NÃO
P59: NÃO
P60: NÃO
P61: NÃO
P62: NÃO
P63: NÃO
P64: NÃO
P65: NÃO
P66: NÃO
P67: NÃO
P68: NÃO
P69: NÃO
P70: NÃO
P71: NÃO
P72: NÃO
P73: NÃO
P74: NÃO
P75: NÃO
P76: NÃO
P77: NÃO
P78: NÃO
P79: NÃO
P80: NÃO
P81: NÃO
P82: NÃO
P83: NÃO
P84: NÃO
P85: NÃO
P86: NÃO
B88: - JUSTIFIQUE EM ANEXO A UTILIDADE DOS SERVIÇOS SOLICITADOS PARA O DESENVOLVIMENTO DO PROJETO DE PESQUISA
B89: =B49 -> FAPESP, AGOSTO DE 2017 | O89: 2
B142: PARA IMPRIMIR A INSTRUÇÃO ABAIXO, SELECIONE A ÁREA A SER IMPRESSA
B143: DIGITE "CTRL" P, E DEPOIS CLIQUE EM SELEÇÃO.
B147: FORMULÁRIO 5 - INSTRUÇÕES PARA PREENCHIMENTO – LEIA ATENTAMENTE AS INSTRUÇÕES ABAIXO.
B148: SERVIÇOS DE TERCEIROS NO BRASIL (STB)
B150: NÃO SERÃO ACEITOS FORMULÁRIOS PREENCHIDOS EM DESACORDO COM ESTA INSTRUÇÃO
B152: - Somente são analisadas solicitações de recursos para serviços especializados e de curta duração. Não incluir salários de qualquer natureza, bolsas no País ou no exterior,
B153: serviços administrativos ou contratos para manutenção de equipamentos.
B154: - Coluna (item) - cada tipo de serviço deve ser numerado seqüencialmente. (ver exemplo abaixo).
B155: - Coluna (quant.) - quantidade de cada serviço, quando possível
B156: - Coluna (descrição) - descrição detalhada do serviço e executor a ser contratado. Toda a descrição deve ser feita em PORTUGUÊS.
B157: - Coluna (preço unitário) - valor unitário em moeda nacional.
B158: - Coluna (custo do item) - custo total de cada item solicitado, em moeda nacional. (a totalização desta coluna é automática).
B159: - Coluna (FAPESP) - para uso exclusivo da FAPESP.
B161: OBSERVAÇÕES:
B162: 1) Para a contratação de recursos humanos de apoio à pesquisa, ver Programa FAPESP de Capacitação Técnica.
B163: 2) Justifique em anexo a utilidade de cada um dos serviços solicitados para o desenvolvimento do projeto de pesquisa proposto.
B165: EXEMPLO | D165: TOTAL | E165: =SUM(O169:O171) -> 11800
B167: item | D167: quant. | E167: descrição (somente 1 linha para cada item) | N167: preço unitário | O167: custo do item | P167: FAPESP
P168: CONCEDIDO? | Q168: ALÍNEA
B169: 1 | D169: 1 | E169: Ensaios em campo e em casas de vegetação para obtenção das sementes a serem realizadas pelo instituto. | N169: 4000 | O169: =N169*D169 -> 4000 | P169: NÃO
B170: 2 | D170: 30 | E170: Horas de uso da microssonda do Instituto .......... | N170: 240 | O170: =N170*D170 -> 7200 | P170: NÃO
B171: 3 | D171: 1 | E171: Conserto do evaporador, a ser realizado pela empresa ....... | N171: 600 | O171: =N171*D171 -> 600 | P171: NÃO
B173: - JUSTIFIQUE EM ANEXO A UTILIDADE DOS SERVIÇOS SOLICITADOS PARA O DESENVOLVIMENTO DO PROJETO DE PESQUISA
B180: =B89 -> FAPESP, AGOSTO DE 2017

Sheet 6-STE
B6: 6- SERVIÇOS DE TERCEIROS NO EXTERIOR
B8: NOME DO INTERESSADO:
B10: PROCESSO:
B12: CÂMBIO (DIGITE A SIGLA DA MOEDA E O VALOR DE SUA TAXA EM DÓLAR)
B13: MOEDA 1: | C13: USD | D13: TAXA: | E13: 1 | G13: MOEDA 2: | I13: TAXA: | L13: MOEDA 3: | N13: TAXA:
B15: MOEDA 4: | D15: TAXA: | G15: MOEDA 5: | I15: TAXA: | L15: MOEDA 6: | N15: TAXA:
B17: TOTAL | D17: =IF(SUM(O21:O50,O57:O93)=0,"",SUM(O21:O50,O57:O93)) -> 
B19: item | C19: quant. | D19: descrição (somente 1 linha para cada item) | K19: moeda de origem | L19: preço unitário | M19: custo do item moeda original | O19: custo do item US$ | P19: FAPESP
P20: CONCEDIDO? | Q20: ALÍNEA
M21: =IF(C21*L21=0,"",C21*L21) ->  | O21: =IF(ISERROR(INDEX($T$21:$T$26,MATCH(K21,$S$21:$S$26,0))*M21),"",INDEX($T$21:$T$26,MATCH(K21,$S$21:$S$26,0))*M21) ->  | P21: NÃO | S21: =IF($C$13=0,"",$C$13) -> USD | T21: =$E$13 -> 1
M22: =IF(C22*L22=0,"",C22*L22) ->  | O22: =IF(ISERROR(INDEX($T$21:$T$26,MATCH(K22,$S$21:$S$26,0))*M22),"",INDEX($T$21:$T$26,MATCH(K22,$S$21:$S$26,0))*M22) ->  | P22: NÃO | S22: =IF($H$13=0,"",$H$13) ->  | T22: =$J$13 -> 0
P23: NÃO | S23: =IF($M$13=0,"",$M$13) ->  | T23: =$O$13 -> 0
P24: NÃO | S24: =IF($C$15=0,"",$C$15) ->  | T24: =$E$15 -> 0
P25: NÃO | S25: =IF($H$15=0,"") ->  | T25: =$J$15 -> 0
P26: NÃO | S26: =IF($M$15=0,"",$M$15) ->  | T26: =$O$15 -> 0
P27: NÃO
P28: NÃO
P29: NÃO
P30: NÃO
P31: NÃO
P32: NÃO
P33: NÃO
P34: NÃO
P35: NÃO
P36: NÃO
P37: NÃO
P38: NÃO
P39: NÃO
P40: NÃO
P41: NÃO
P42: NÃO
P43: NÃO
P44: NÃO
P45: NÃO
P46: NÃO
P47: NÃO
P48: NÃO
P49: NÃO
P50: NÃO
B52: - JUSTIFIQUE EM ANEXO A UTILIDADE DOS SERVIÇOS SOLICITADOS PARA O DESENVOLVIMENTO DO PROJETO DE PESQUISA
B53: ='5-STB'!B89 -> FAPESP, AGOSTO DE 2017 | Q53: 1
B54: =B6 -> 6- SERVIÇOS DE TERCEIROS NO EXTERIOR
B55: item | C55: quant. | D55: descrição (somente 1 linha para cada item) | K55: moeda de origem | L55: preço unitário | M55: custo do item moeda original | O55: custo do item US$ | P55: FAPESP
P56: CONCEDIDO? | Q56: ALÍNEA
M57: =IF(C57*L57=0,"",C57*L57) ->  | O57: =IF(ISERROR(INDEX($T$21:$T$26,MATCH(K57,$S$21:$S$26,0))*M57),"",INDEX($T$21:$T$26,MATCH(K57,$S$21:$S$26,0))*M57) ->  | P57: NÃO
O58: =IF(ISERROR(INDEX($T$21:$T$26,MATCH(K58,$S$21:$S$26,0))*M58),"",INDEX($T$21:$T$26,MATCH(K58,$S$21:$S$26,0))*M58) ->  | P58: NÃO
P59: NÃO
P60: NÃO
P61: NÃO
P62: NÃO
P63: NÃO
P64: NÃO
P65: NÃO
P66: NÃO
P67: NÃO
P68: NÃO
P69: NÃO
P70: NÃO
P71: NÃO
P72: NÃO
P73: NÃO
P74: NÃO
P75: NÃO
P76: NÃO
P77: NÃO
P78: NÃO
P79: NÃO
P80: NÃO
P81: NÃO
P82: NÃO
P83: NÃO
P84: NÃO
P85: NÃO
P86: NÃO
P87: NÃO
P88: NÃO
P89: NÃO
P90: NÃO
P91: NÃO
P92: NÃO
P93: NÃO
B95: - JUSTIFIQUE EM ANEXO A UTILIDADE DOS SERVIÇOS SOLICITADOS PARA O DESENVOLVIMENTO DO PROJETO DE PESQUISA
B96: =B53 -> FAPESP, AGOSTO DE 2017 | Q96: 2
B139: PARA IMPRIMIR A INSTRUÇÃO ABAIXO, SELECIONE A ÁREA A SER IMPRESSA
B140: DIGITE "CTRL" P, E DEPOIS CLIQUE EM SELEÇÃO.
B144: FORMULÁRIO 6 - INSTRUÇÕES PARA PREENCHIMENTO – LEIA ATENTAMENTE AS INSTRUÇÕES ABAIXO.
B145: SERVIÇOS DE TERCEIROS A SEREM CONTRATADOS NO EXTERIOR (STE)
B147: NÃO SERÃO ACEITOS FORMULÁRIOS PREENCHIDOS EM DESACORDO COM ESTA INSTRUÇÃO
B148: - Somente são analisadas solicitações de recursos para serviços especializados e de curta duração. Não incluir salários de qualquer natureza, bolsas no País ou no exterior,
B149: serviços administrativos ou contratos para manutenção de equipamentos.
B150: - Coluna (item) - cada tipo de serviço deve ser numerado seqüencialmente. (Ver exemplo abaixo).
B151: - Coluna (quant.) - quantidade de cada serviço, quando possível.
B152: - Coluna (descrição) - descrição detalhada do serviço e executor a ser contratado. Descreva despesas cobradas pelo executor (ex.: embalagem, documentação, etc),
B153: toda a descrição deve ser feita em PORTUGUÊS, (ver exemplo abaixo).
B154: - Coluna (moeda de origem) - indique a moeda de origem.
B155: - Coluna (preço do item) - valor unitário na moeda de origem (indicar moeda na coluna anterior).
B156: - Coluna (custo do item - moeda original) - custo total, na moeda de origem, de cada item solicitado.
B157: - Coluna (custo do item - US$) - conversão automática para o dólar americano, do valor lançado na Coluna custo do item.
B158: - Coluna (FAPESP) - para uso exclusivo da FAPESP
B159: OBSERVAÇÕES:
B160: 1) Para a contratação de recursos humanos de apoio à pesquisa, ver Programa FAPESP de Capacitação Técnica;
B161: 2) Justifique em anexo a utilidade de cada um dos serviços solicitados para o desenvolvimento do projeto de pesquisa proposto;
B162: 3) Todo o valor remetido ao exterior é deduzido dos recursos concedidos.
B163: EXEMPLO
B165: CÂMBIO (DIGITE A SIGLA DA MOEDA E O VALOR DE SUA TAXA EM DÓLAR)
B167: MOEDA 1: | C167: USD | D167: TAXA: | E167: 1 | G167: MOEDA 2: | H167: EUR | I167: TAXA | J167: 1.24 | L167: MOEDA 3: | M167: GBP | N167: TAXA: | O167: 1.78
B169: TOTAL | D169: =SUM(O173:O176) -> 2389.38
B171: item | C171: quant. | D171: descrição (somente 1 linha para cada item) | K171: moeda de origem | L171: preço unitário | M171: custo do item moeda original | O171: custo do item US$ | P171: FAPESP
P172: CONCEDIDO? | Q172: ALÍNEA | S172: =S21 -> USD | T172: =T21 -> 1
B173: 1 | C173: 1 | D173: Reparo de equipamento a ser feito pela empresa... Na Alemanha | K173: USD | L173: 1200 | M173: =C173*L173 -> 1200 | O173: =IF(M173<>0,INDEX($T$172:$T$175,MATCH(K173,$S$172:$S$175,0))*M173,"") -> 1200 | P173: NÃO | S173: EUR | T173: =J167 -> 1.24
B174: 1a | C174: 1 | D174: Despesas com frete, embalagem, documentação | K174: EUR | L174: 240 | M174: =C174*L174 -> 240 | O174: =M174*J167 -> 297.6 | P174: NÃO | S174: GBP | T174: =O167 -> 1.78
B175: 2 | C175: 1 | D175: Análise de amostras de ... a serem realizadas pelo Laboratório, ... na Inglaterra | K175: GBP | L175: 456 | M175: =C175*L175 -> 456 | O175: =IF(M175<>0,INDEX($T$172:$T$175,MATCH(K175,$S$172:$S$175,0))*M175,"") -> 811.68 | P175: NÃO | S175: =S24 ->  | T175: 0
B176: 2a | C176: 1 | D176: Despesas com frete, embalagem, documentação | K176: GBP | L176: 45 | M176: =C176*L176 -> 45 | O176: =IF(M176<>0,INDEX($T$172:$T$175,MATCH(K176,$S$172:$S$175,0))*M176,"") -> 80.1 | P176: NÃO | S176: =S25 ->  | T176: 0
B178: - JUSTIFIQUE EM ANEXO A UTILIDADE DOS SERVIÇOS SOLICITADOS PARA O DESENVOLVIMENTO DO PROJETO DE PESQUISA
B179: =B96 -> FAPESP, AGOSTO DE 2017

Sheet 7-TRAN
B6: 7- DESPESAS DE TRANSPORTE
B8: NOME DO INTERESSADO:
B10: PROCESSO:
B13: TOTAL: | D13: =IF(SUM(O17:O43:O51:O82)=0,"",SUM(O17:O43:O51:O82)) -> 
B15: item | D15: quant. | E15: descrição (somente 1 linha para cada item) | N15: preço unitário | O15: custo do item | P15: FAPESP
P16: CONCEDIDO? | Q16: ALÍNEA
O17: =IF(N17*D17=0,"",N17*D17) ->  | P17: NÃO
P18: NÃO
P19: NÃO
P20: NÃO
P21: NÃO
P22: NÃO
P23: NÃO
P24: NÃO
P25: NÃO
P26: NÃO
P27: NÃO
P28: NÃO
P29: NÃO
P30: NÃO
P31: NÃO
P32: NÃO
P33: NÃO
P34: NÃO
P35: NÃO
P36: NÃO
P37: NÃO
P38: NÃO
P39: NÃO
P40: NÃO
P41: NÃO
P42: NÃO
P43: NÃO
B45: - JUSTIFIQUE EM ANEXO A UTILIDADE DE CADA ITEM SOLICITADO PARA O DESENVOLVIMENTO DO PROJETO DE PESQUISA
B46: ='1-MPN'!B52 -> FAPESP, AGOSTO DE 2017 | Q46: 1
B48: =B6 -> 7- DESPESAS DE TRANSPORTE
B49: item | D49: quant. | E49: descrição (somente 1 linha para cada item) | N49: preço unitário | O49: custo do item | P49: FAPESP
P50: CONCEDIDO? | Q50: ALÍNEA
O51: =IF(N51*D51=0,"",N51*D51) ->  | P51: NÃO
P52: NÃO
P53: NÃO
P54: NÃO
P55: NÃO
P56: NÃO
P57: NÃO
P58: NÃO
P59: NÃO
P60: NÃO
P61: NÃO
P62: NÃO
P63: NÃO
P64: NÃO
P65: NÃO
P66: NÃO
P67: NÃO
P68: NÃO
P69: NÃO
P70: NÃO
P71: NÃO
P72: NÃO
P73: NÃO
P74: NÃO
P75: NÃO
P76: NÃO
P77: NÃO
P78: NÃO
P79: NÃO
P80: NÃO
P81: NÃO
P82: NÃO
B84: - JUSTIFIQUE EM ANEXO A UTILIDADE DE CADA ITEM SOLICITADO PARA O DESENVOLVIMENTO DO PROJETO DE PESQUISA
B85: =B46 -> FAPESP, AGOSTO DE 2017 | Q85: 2
B136: PARA IMPRIMIR A INSTRUÇÃO ABAIXO, SELECIONE A ÁREA A SER IMPRESSA
B137: DIGITE "CTRL" P, E DEPOIS CLIQUE EM SELEÇÃO.
B141: FORMULÁRIO 7 - INSTRUÇÕES PARA PREENCHIMENTO – LEIA ATENTAMENTE AS INSTRUÇÕES ABAIXO.
B142: DESPESAS DE TRANSPORTE (DET)
B144: NÃO SERÃO ACEITOS FORMULÁRIOS PREENCHIDOS EM DESACORDO COM ESTA INSTRUÇÃO
B146: - Apresente somente orçamento de recursos necessários para a realização de pesquisa de campo, passagens, combustível, etc., para transporte de pessoas.
B147: - Inclua percurso, meio de transporte e nome do usuário dos recursos. Transporte de bens, são considerados Serviços de Terceiros.
B148: - Coluna (item) - cada viagem deve ser numerada seqüencialmente (ver exemplo abaixo).
B149: - Coluna (quant.) - quantidade de viagens a serem realizadas em um mesmo percurso, por uma mesma pessoa.
B150: - Coluna (descrição) - descreva o percurso a ser realizado, o meio de transporte a ser utilizado e indique quem realizará a viagem.
B151: - Coluna (preço unitário) - valor unitário em moeda nacional.
B152: - Coluna (custo do item) - custo total das viagens solicitadas em cada item, em moeda nacional. (a totalização desta coluna é automática).
B153: - Coluna (FAPESP) - para uso exclusivo da FAPESP.
B154: OBSERVAÇÕES:
B155: 1) Auxílios para a vinda de pesquisador visitante, realização de estágios, participação em reunião, etc., devem ser solicitados em processo separado, nas modalidades
B156: específicas para cada finalidade e de acordo com as regras em vigor.
B157: 2) Para a contratação de recursos humanos de apoio à pesquisa, ver Programa FAPESP de Capacitação Técnica.
B158: 3) Justifique em anexo a utilidade de cada item solicitado para o desenvolvimento do projeto de pesquisa proposto.
B160: EXEMPLO | D160: TOTAL | E160: =SUM(O164:Q167) -> 4900
B162: item | D162: quant. | E162: descrição (somente 1 linha para cada item) | N162: preço unitário | O162: custo do item | P162: FAPESP
P163: CONCEDIDO? | Q163: ALÍNEA
B164: 1 | D164: 1 | E164: Aluguel de ônibus, para o percurso São Carlos/São Paulo/São Carlos (Aux.Org.) | N164: 500 | O164: =(N164*D164) -> 500 | P164: NÃO
B165: 2 | D165: 2 | E165: Passagens aéreas SP/Rio de Janeiro/SP a serem utilizadas por João da Silva, em pesquisa de campo. | N165: 200 | O165: =(N165*D165) -> 400 | P165: NÃO
B166: 3 | D166: 1 | E166: Passagem aérea New York/SP/New York-palestrante Joseph Smith (Aux.Org.) | N166: 2000 | O166: =(N166*D166) -> 2000 | P166: NÃO
B167: 4 | D167: 1 | E167: Passagem aérea New York/SP/New York – palestrante John Thompson (Aux.Org.) | N167: 2000 | O167: =(N167*D167) -> 2000 | P167: NÃO
B169: - JUSTIFIQUE EM ANEXO A UTILIDADE DE CADA ITEM SOLICITADO PARA O DESENVOLVIMENTO DO PROJETO DE PESQUISA
B170: =B85 -> FAPESP, AGOSTO DE 2017

Sheet 8-DIP-DIE
B6: 8- DESPESAS COM DIÁRIAS NO PAÍS E NO EXTERIOR
B8: NOME DO INTERESSADO:
B10: PROCESSO:
B12: TOTAL DIP: | D12: =IF(SUM(O16:O49,O56:O91)=0,"",SUM(O16:O49,O56:O91)) ->  | H12: TOTAL DIE: | K12: =IF(SUM(P16:P49,P56:P91)=0,"",SUM(P16:P49,P56:P91)) -> 
B14: item | C14: quant. | D14: descrição (somente 1 linha para cada item) | M14: item de despesa | N14: preço unitário | O14: total DIP | P14: total DIE | Q14: FAPESP | T14: DIP
Q15: CONCEDIDO? | R15: ALÍNEA
O16: =IF(M16="DIP",C16*N16,"") ->  | P16: =IF(M16="DIE",C16*N16,"") ->  | Q16: NÃO | T16: DIE
Q17: NÃO
Q18: NÃO
Q19: NÃO
Q20: NÃO
Q21: NÃO
Q22: NÃO
Q23: NÃO
Q24: NÃO
Q25: NÃO
Q26: NÃO
Q27: NÃO
Q28: NÃO
Q29: NÃO
Q30: NÃO
Q31: NÃO
Q32: NÃO
Q33: NÃO
O34: =IF(M34="DIP",C34*N34,"") ->  | P34: =IF(M34="DIE",C34*N34,"") ->  | Q34: NÃO
Q35: NÃO
Q36: NÃO
Q37: NÃO
Q38: NÃO
Q39: NÃO
Q40: NÃO
Q41: NÃO
Q42: NÃO
Q43: NÃO
Q44: NÃO
Q45: NÃO
Q46: NÃO
Q47: NÃO
Q48: NÃO
Q49: NÃO
B51: - JUSTIFIQUE EM ANEXO A UTILIDADE DE CADA ITEM SOLICITADO PARA O DESENVOLVIMENTO DO PROJETO DE PESQUISA
B52: ='1-MPN'!$B$52 -> FAPESP, AGOSTO DE 2017 | R52: 1
B53: =B6 -> 8- DESPESAS COM DIÁRIAS NO PAÍS E NO EXTERIOR
B54: item | C54: quant. | D54: descrição (somente 1 linha para cada item) | M54: item de despesa | N54: preço unitário | O54: total DIP | P54: total DIE | Q54: FAPESP
Q55: CONCEDIDO? | R55: ALÍNEA
O56: =IF(M56="DIP",C56*N56,"") ->  | P56: =IF(M56="DIE",C56*N56,"") ->  | Q56: NÃO
O57: =IF(M57="DIP",C57*N57,"") ->  | P57: =IF(M57="DIE",C57*N57,"") ->  | Q57: NÃO
Q58: NÃO
Q59: NÃO
Q60: NÃO
Q61: NÃO
Q62: NÃO
Q63: NÃO
Q64: NÃO
Q65: NÃO
Q66: NÃO
Q67: NÃO
Q68: NÃO
Q69: NÃO
Q70: NÃO
Q71: NÃO
Q72: NÃO
Q73: NÃO
Q74: NÃO
Q75: NÃO
Q76: NÃO
Q77: NÃO
Q78: NÃO
Q79: NÃO
Q80: NÃO
Q81: NÃO
Q82: NÃO
Q83: NÃO
Q84: NÃO
Q85: NÃO
Q86: NÃO
Q87: NÃO
Q88: NÃO
Q89: NÃO
Q90: NÃO
Q91: NÃO
B93: - JUSTIFIQUE EM ANEXO A UTILIDADE DE CADA ITEM SOLICITADO PARA O DESENVOLVIMENTO DO PROJETO DE PESQUISA
B94: ='1-MPN'!$B$52 -> FAPESP, AGOSTO DE 2017 | R94: 2
B148: PARA IMPRIMIR A INSTRUÇÃO ABAIXO, SELECIONE A ÁREA A SER IMPRESSA
B149: DIGITE "CTRL" P, E DEPOIS CLIQUE EM SELEÇÃO.
B153: FORMULÁRIO 8- DESPESAS COM DIÁRIAS NO PAÍS E NO EXTERIOR
B154: INSTRUÇÕES PARA PREENCHIMENTO – LEIA ATENTAMENTE AS INSTRUÇÕES ABAIXO.
B156: NÃO SERÃO ACEITOS FORMULÁRIOS PREENCHIDOS EM DESACORDO COM ESTA INSTRUÇÃO
B158: - Apresente somente orçamento de recursos necessários para a realização de viagens. Se Concedido, o valor de cada diária não poderá ultrapassar o limite da tabela da FAPESP.
B159: - Coluna (item) - cada viagem deve ser numerada seqüencialmente (ver exemplo abaixo).
B160: - Coluna (quantidade) - quantidade de diárias necessárias para cada viagem/usuário.
B161: - Coluna (descrição) - descreva a viagem que se pretende realizar e indique quem será o usuário das diárias (Toda a descrição deve ser feita em português).
B162: - Coluna (item de despesa) - informe se é DIP ou DIE.
B163: - Coluna (preço unitário) - valor unitário em moeda nacional.
B164: - Coluna (total DIP) - cálculo automático do valor total das diárias solicitadas no PAÍS, conforme seleção da coluna (item de despesa).
B165: - Coluna (total DIE) - cálculo automático do valor total das diárias solicitadas no EXTERIOR, conforme seleção da coluna (item de despesa).
B166: - Coluna () - para uso exclusivo da FAPESP.
B168: OBSERVAÇÕES:
B169: 1) Auxílios para a vinda de pesquisador visitante, realização de estágios, participação em reunião, etc. devem ser solicitados em formulários específicos
B170: para cada finalidade e de acordo com as regras em vigor.
B171: 2) Para a contratação de recursos humanos de apoio à pesquisa, ver Programa FAPESP de Capacitação Técnica.
B172: 3) Justifique em anexo a utilidade de cada item solicitado para o desenvolvimento do projeto de pesquisa proposto.
B173: EXEMPLO
B175: item | D175: quant. | E175: descrição (somente 1 linha para cada item) | M175: item de despesa | N175: preço unitário | O175: total DIP | P175: total DIE | Q175: FAPESP
Q176: CONCEDIDO? | R176: ALÍNEA
B177: 1 | D177: 3 | E177: Pesquisa de campo a ser realizada por ......, na cidade de Brasília | M177: DIP | N177: 200 | O177: =N177*D177 -> 600 | Q177: NÃO
B178: 2 | D178: 2 | E178: Pesquisa de campo a ser realizada por ......, na cidade do Rio de Janeiro | M178: DIP | N178: 200 | O178: =N178*D178 -> 400 | Q178: NÃO
B179: 3 | D179: 2 | E179: Pesquisa de campo a ser realizada por ......, em New York City | M179: die | N179: 350 | P179: 700 | Q179: NÃO
B181: - JUSTIFIQUE EM ANEXO A UTILIDADE DE CADA ITEM SOLICITADO PARA O DESENVOLVIMENTO DO PROJETO DE PESQUISA
B182: ='1-MPN'!$B$52 -> FAPESP, AGOSTO DE 2017 | R182: 2

Sheet 9a-BOLSAS - TT
B7: 9A- BOLSAS DE CAPACITAÇÃO TÉCNICA VINCULADAS AO | I7: ='1-MPN'!B7 -> CLIQUE AQUI E SELECIONE A MODALIDADE DO AUXÍLIO SOLICITADO
B9: NOME DO INTERESSADO:
B11: PROCESSO:
B13: TOTAL: | E13: =IF(SUM(K17:K45)=0,"",(SUM(K17:K45))) -> 
B15: item | E15: modalidade | F15: quantidade | G15: duração (meses) | H15: carga horária semanal | I15: valor integral da bolsa | J15: valor da mensalidade | K15: custo total | L15: FAPESP
L16: CONCEDIDO?
I17: =IF(E17=0,"",F17*INDEX($O$17:$O$22,MATCH(E17,$N$17:$N$22,0))) ->  | J17: =IF(E17="","",INDEX($O$17:$O$22,MATCH(E17,$N$17:$N$22,0))) ->  | K17: =IF(E17=0,"",IF(E17="TT-I",F17*I17*G17,F17*I17*G17*(H17/40))) ->  | L17: NÃO | N17: TT-I | O17: 427.6 | Q17: 1
I18: =IF(E18=0,"",F18*INDEX($O$17:$O$22,MATCH(E18,$N$17:$N$22,0))) ->  | J18: =IF(E18="","",INDEX($O$17:$O$22,MATCH(E18,$N$17:$N$22,0))) ->  | L18: NÃO | N18: TT-II | O18: 854.4 | Q18: 2
L19: NÃO | N19: TT-III | O19: 1195.6 | Q19: 3
L20: NÃO | N20: TT-IV | O20: 3021.6 | Q20: 4
L21: NÃO | N21: TT-IV-A | O21: 4954.4 | Q21: 5
L22: NÃO | N22: TT-V | O22: 7174.4 | Q22: 6
L23: NÃO | Q23: 7
L24: NÃO | Q24: 8
L25: NÃO | Q25: 9
L26: NÃO | Q26: 10
L27: NÃO | Q27: 11
L28: NÃO | Q28: 12
L29: NÃO | Q29: 13
L30: NÃO | Q30: 14
L31: NÃO | Q31: 15
L32: NÃO | Q32: 16
L33: NÃO | Q33: 17
L34: NÃO | Q34: 18
L35: NÃO | Q35: 19
L36: NÃO | Q36: 20
L37: NÃO | Q37: 21
L38: NÃO | Q38: 22
L39: NÃO | Q39: 23
L40: NÃO | Q40: 24
L41: NÃO | Q41: 25
L42: NÃO | Q42: 26
L43: NÃO | Q43: 27
L44: NÃO | Q44: 28
L45: NÃO | Q45: 29
B46: ='1-MPN'!B52 -> FAPESP, AGOSTO DE 2017 | Q46: 30
Q47: 31
Q48: 32
Q49: 33
Q50: 34
Q51: 35
Q52: 36
Q53: 37
Q54: 38
Q55: 39
Q56: 40
B79: PARA IMPRIMIR A INSTRUÇÃO ABAIXO, SELECIONE A ÁREA A SER IMPRESSA
B80: DIGITE "CTRL" P, E DEPOIS CLIQUE EM SELEÇÃO.
B84: 9A- BOLSAS DE CAPACITAÇÃO TÉCNICA VINCULADAS A:
B86: AS CAIXAS DE SELEÇÃO ACIMA, DEVEM SER CLICADAS DEPENDENDO DO PROGRAMA A QUE AS BOLSAS TT ESTÃO VINCULADAS.
B87: SOMENTE É PERMITIDO A SELEÇÃO DE UMA DAS CAIXAS.
B89: NOME DO INTERESSADO:
B91: PROCESSO: | H91: (PARA PEDIDOS INICIAIS, NÃO É NECESSÁRIO PREENCHER ESTE CAMPO, ELE DEVE SER PREENCHIDO EM CASOS DE RECONSIDERAÇÃO DO ORÇAMENTO PELA FAPESP.
B93: TOTAL: | E93: =IF(SUM(K96:K101)=0,"",(SUM(K96:K101))) -> 209399.52 | H93: (CÉLULA DE TOTALIZAÇÃO AUTOMÁTICA)
B95: item | E95: modalidade | F95: quantidade | G95: duração (meses) | H95: carga horária semanal | I95: valor integral da bolsa | J95: valor da mensalidade | K95: custo total | L95: FAPESP
B96: 1 | E96: TT-I | F96: 1 | G96: 6 | I96: =IF(E96=0,"",INDEX($O$17:$O$22,MATCH(E96,$N$17:$N$22,0))) -> 427.6 | J96: =IF(ISERROR(K96/G96/F96),"",(K96/G96/F96)) -> 427.6 | K96: =IF(E96=0,"",IF(E96="TT-I",F96*I96*G96,F96*I96*G96*(H96/40))) -> 2565.6 | L96: CONCEDIDO?
B97: 2 | E97: TT-I | F97: 1 | G97: 12 | I97: =IF(E97=0,"",INDEX($O$17:$O$22,MATCH(E97,$N$17:$N$22,0))) -> 427.6 | J97: 427.6 | K97: 5131.2 | L97: NÃO
B98: 3 | E98: TT-II | F98: 2 | G98: 12 | H98: 16 | I98: 854.4 | J98: 341.76 | K98: 8202.24 | L98: NÃO
B99: 4 | E99: TT-III | F99: 1 | G99: 12 | H99: 40 | I99: 1195.6 | J99: 1023.6 | K99: =J99*G99*H99/40 -> 12283.2 | L99: NÃO
B100: 5 | E100: TT-IV-A | F100: 2 | G100: 24 | H100: 16 | I100: 4954.4 | J100: 1981.76 | K100: 95124.48 | L100: NÃO
B101: 6 | E101: TT-V | F101: 1 | G101: 12 | H101: 40 | I101: 7174.4 | J101: 7174.4 | K101: 86092.8 | L101: NÃO
B103: Coluna (item) - as bolsas solicitadas devem ser numeradas sequencialmente.
B104: Coluna (modalidade) - Selecione a modalidade de bolsa TT, veja acima todas as opções disponíveis.
B105: Coluna (quantidade) - Digite a quantidade de bolsas (bolsistas) referente a modalidade solicitada.
B106: Coluna (duração (meses)) - Digite a duração da bolsa solicitada, se houver mais de um bolsista de uma mesma modalidade com duração
B107: diferente, deve ser preenchida outra linha nesta modalidade, conforme exemplo nos itens 1 e 2 acima.
B108: Coluna (carga horária semanal) - As bolsas de TT-I tem carga horária semanal de 15 horas, por isso quando é selecionada esta
B109: modalidade a caixa de seleção desta coluna fica com fundo preto (automático), para as outras bolsas, é possível selecionar de
B110: 16 a 40 horas semanais, veja abaixo os níveis de bolsas TT disponíveis.
B111: Coluna (valor integral da bolsa) - Esta coluna é automática de acordo com a modalidade de bolsa TT selecionada.
B112: Coluna (valor da mensalidade) - Esta coluna é automática e pode variar de acordo com a carga horária semanal selecionada para as | C112: Coluna (valor integral da bolsa) - Esta coluna é automática de acordo com a modalidade de bolsa TT selecionada.
B113: bolsa de TT-II, TT-III, TT-IV ou TT-V.
B114: Coluna (custo total) - Coluna de totalização automática.
B116: Níveis de Bolsas TT | G116: http://www.fapesp.br/materia/3098/capacitacao-tecnica/niveis-de-bolsas-tt.htm
B118: Os níveis de Bolsas TT são:
B119: i) Bolsa TT-1, para alunos de graduação, sem reprovações em seu histórico escolar e sem vínculo empregatício, com dedicação de 15 horas semanais às atividades de apoio ao projeto de pesquisa, sem que haja prejuízo em seu desempenho acadêmico;
B120: ii) Bolsa TT-2, para alunos do último ano ou egressos do nível médio técnico, sem reprovações em seu histórico escolar e sem vínculo empregatício, com dedicação de 16 a 40 horas semanais (o valor da Bolsa a ser paga será proporcional ao número de horas semanais) às atividades de apoio ao projeto de pesquisa;
B121: iii) Bolsa TT-3, para alunos graduados do nível superior, sem reprovações em seu histórico escolar e sem vínculo empregatício, com dedicação de 16 a 40 horas semanais (o valor da Bolsa a ser paga será proporcional ao número de horas semanais) às atividades de apoio ao projeto de pesquisa. O tempo de bolsa TT-3 será descontado no caso do interessado vir a usufruir de Bolsa de Mestrado ou Doutorado Direto.
B122: iv) Bolsa TT-4, para graduado, especialista em Tecnologia de Informação (TI), com dois anos de experiência após a graduação ou título de mestrado na área de TI, sem vínculo empregatício, com dedicação de 16 a 40 horas semanais (o valor da Bolsa a ser paga será proporcional ao número de horas semanais) às atividades de apoio ao projeto de pesquisa;
B123: v) Bolsa TT-4A, para graduado, especialista em TI com pelo menos quatro anos de experiência após a graduação, sem vínculo empregatício, com dedicação de 16 a 40 horas semanais (o valor da Bolsa a ser paga será proporcional ao número de horas semanais) às atividades de apoio ao projeto de pesquisa;
B124: vi) Bolsa TT-5, para graduado, especialista em TI com pelo menos cinco anos de experiência após a graduação ou título de doutorado, sem vínculo empregatício, com dedicação de 16 a 40 horas semanais (o valor da Bolsa a ser paga será proporcional ao número de horas semanais) às atividades de apoio ao projeto de pesquisa.

Sheet 9b-BOLSAS IC,DD,PD - TEMÁTICO
B6: 9B- BOLSAS ACADÊMICAS VINCULADAS SOMENTE A PROJETOS TEMÁTICOS - (IC-DD-PD)
B8: NOME DO INTERESSADO:
B10: PROCESSO:
B12: TOTAL: | C12: =IF(SUM(H16:H41)=0,"",(SUM(H16:H41))) -> 
B14: item | C14: modalidade | D14: quantidade | E14: duração (meses) | F14: valor da bolsa | G14: Reserva Técnica da bolsa | H14: custo total | I14: FAPESP
I15: CONCEDIDO? | K15: MODALIDADE | L15: VALOR BOLSA | M15: RT ANUAL | N15: RT MENSAL | O15: % | Q15: Iniciação Científica (IC) | R15: 676.8
F16: =IF(C16=0,"",INDEX($L$16:$L$21,MATCH(C16,$K$16:$K$21,0))) ->  | G16: =IF(C16="","",E16*INDEX($N$16:$N$21,MATCH(C16,$K$16:$K$21,0))) ->  | H16: =IF(ISERROR(D16*F16*E16),"",D16*F16*E16) ->  | I16: NÃO | K16: IC | L16: 676.8 | M16: =L16*12*O16 -> 812.16 | N16: =M16/12 -> 67.68 | O16: 0.1 | Q16: Mestrado I (MS-I) e Doutorado Direto I (DD I) | R16: 1988.1
F17: =IF(C17=0,"",INDEX($L$16:$L$21,MATCH(C17,$K$16:$K$21,0))) ->  | G17: =IF(C17="","",E17*INDEX($N$16:$N$21,MATCH(C17,$K$16:$K$21,0))) ->  | H17: =IF(ISERROR(D17*F17*E17),"",D17*F17*E17) ->  | I17: NÃO | K17: DD-I | L17: 1988.1 | M17: 7157.16 | N17: 596.43 | O17: 0.3 | Q17: Mestrado II (MS-II) e Doutorado Direto II (DD II) | R17: 2110.2
I18: NÃO | K18: DD-II | L18: 2110.2 | M18: 7596.72 | N18: 633.06 | O18: 0.3 | Q18: Doutorado I (DR-I) e Doutorado Direto III (DD III) | R18: 2929.8
I19: NÃO | K19: DD-III | L19: 2929.8 | M19: 10547.28 | N19: 878.94 | O19: 0.3 | Q19: Doutorado II (DR-II) e Doutorado Direto IV (DD-IV) | R19: 3626.1
H20: =IF(ISERROR(D20*F20*E20),"",D20*F20*E20) ->  | I20: NÃO | K20: DD-IV | L20: 3626.1 | M20: 13053.96 | N20: 1087.83 | O20: 0.3 | Q20: Pós-Doutorado (PD-BR) | R20: 7174.8
I21: NÃO | K21: PD | L21: =R20 -> 7174.8 | M21: =L21*12*O21 -> 12914.64 | N21: =M21/12 -> 1076.22 | O21: 0.15
I22: NÃO
I23: NÃO
I24: NÃO
I25: NÃO
I26: NÃO
I27: NÃO
I28: NÃO
I29: NÃO
I30: NÃO
I31: NÃO
I32: NÃO
I33: NÃO
I34: NÃO | K34: TOTAL DA RESERVA TÉCNICA TEMÁTICO - ESTA ABA
I35: NÃO | K35: =SUM(G16:G41) -> 0
I36: NÃO
I37: NÃO | K37: TOTAL GERAL DA RESERVA TÉCNICA - JP
I38: NÃO | K38: ='9C-BOLSAS IC,MS,DD - JP'!K35 -> 0
I39: NÃO
I40: NÃO | K40: TOTAL GERAL DA RESERVA TÉCNICA DA BOLSAS
I41: NÃO | K41: =K35+K38 -> 0
B42: ='9a-BOLSAS - TT'!B46 -> FAPESP, AGOSTO DE 2017
R71: Valores vigentes até 31/3/2016
R72: 579.3
R73: 1701.9
R74: 1806.6
R75: 2508.6
R76: 3104.7
R77: 6143.4 | S77: Valores vigentes até 31/3/2016 | T77: Valores vigentes a partir de 1º/4/2016
R78: Valores vigentes até 31/3/2016 | S78: 579.3 | T78: 643.2
R79: 366 | S79: 1701.9 | T79: 1889.4
R80: 731.4 | S80: 1806.6 | T80: 2005.5
R81: 1023.6 | S81: 2508.6 | T81: 2784.6
R82: 2587.2 | S82: 3104.7 | T82: 3446.4
R83: 4238.7 | S83: 6143.4 | T83: 6819.3
R84: 6143.4 | S84: Valores vigentes até 31/3/2016 | T84: Valores vigentes a partir de 1º/4/2016
R85: 585 | S85: 366 | T85: 406.5
R86: 877.2 | S86: 731.4 | T86: 812.1
R87: USD 1.200 | S87: 1023.6 | T87: 1136.4
R88: Valores vigentes até 31/3/2016 | S88: 2587.2 | T88: 2871.9
R89: 6980.4 | S89: 4238.7 | T89: 4705.2
R90: Valores vigentes até 31/3/2016 | S90: 6143.4 | T90: 6819.3
R91: 263.7 | S91: 585 | T91: 649.5
R92: 526.8 | S92: 877.2 | T92: 973.8
R93: 789.9 | S93: USD 1.200 | T93: USD 1.200
R94: 1052.4 | S94: Valores vigentes até 31/3/2016 | T94: Valores vigentes a partir de 1º/4/2016
R95: 1316.1 | S95: 6980.4 | T95: 7748.4
R96: 2104.8 | S96: Valores vigentes até 31/3/2016 | T96: Valores vigentes a partir de 1º/4/2016
R97: Valores vigentes até 31/3/2016 | S97: 263.7 | T97: 292.8
R98: 3372.9 | S98: 526.8 | T98: 585
R99: 4990.8 | S99: 789.9 | T99: 876.9
R100: 6980.4 | S100: 1052.4 | T100: 1168.2
R101: Valores vigentes até 31/3/2016 | S101: 1316.1 | T101: 1461
R102: 579.3 | S102: 2104.8 | T102: 2336.4
R103: 1701.9 | S103: Valores vigentes até 31/3/2016 | T103: Valores vigentes a partir de 1º/4/2016
R104: 2508.6 | S104: 3372.9 | T104: 3744
R105: 6143.4 | S105: 4990.8 | T105: 5539.8
S106: 6980.4 | T106: 7748.4
S107: Valores vigentes até 31/3/2016 | T107: Valores vigentes a partir de 1º/4/2016
S108: 579.3 | T108: 643.2
S109: 1701.9 | T109: 1889.4
S110: 2508.6 | T110: 2784.6
S111: 6143.4 | T111: 6819.3

Sheet 9C-BOLSAS IC,MS,DD - JP
B6: 9B- BOLSAS ACADÊMICAS VINCULADAS AUXILIO JOVEM PESQUISADOR - (IC-MS-DD)
B8: NOME DO INTERESSADO:
B10: PROCESSO:
B12: TOTAL: | C12: =IF(SUM(H16:H41)=0,"",(SUM(H16:H41))) -> 
B14: item | C14: modalidade | D14: quantidade | E14: duração (meses) | F14: valor da bolsa | G14: Reserva Técnica da bolsa | H14: custo total | I14: FAPESP
I15: CONCEDIDO? | K15: MODALIDADE | L15: VALOR BOLSA | M15: RT ANUAL | N15: RT MENSAL | O15: %
F16: =IF(C16=0,"",INDEX($L$16:$L$22,MATCH(C16,$K$16:$K$22,0))) ->  | G16: =IF(C16="","",E16*INDEX($N$16:$N$22,MATCH(C16,$K$16:$K$22,0))) ->  | H16: =IF(ISERROR(D16*F16*E16),"",D16*F16*E16) ->  | I16: NÃO | K16: IC | L16: 676.8 | M16: =L16*12*O16 -> 812.16 | N16: =M16/12 -> 67.68 | O16: 0.1 | Q16: Iniciação Científica (IC) | R16: 676.8
F17: =IF(C17=0,"",INDEX($L$16:$L$22,MATCH(C17,$K$16:$K$22,0))) ->  | G17: =IF(C17="","",E17*INDEX($N$16:$N$22,MATCH(C17,$K$16:$K$22,0))) ->  | I17: NÃO | K17: MS-I | L17: 1986.1 | M17: 7149.96 | N17: 595.83 | O17: 0.3 | Q17: Mestrado I (MS-I) e Doutorado Direto I (DD I) | R17: 1988.1 | T17: \
I18: NÃO | K18: MS-II | L18: 2110.2 | M18: 7596.72 | N18: 633.06 | O18: 0.3 | Q18: Mestrado II (MS-II) e Doutorado Direto II (DD II) | R18: 2110.2
I19: NÃO | K19: DD-I | L19: 1988.1 | M19: =L19*12*O19 -> 7157.16 | N19: =M19/12 -> 596.43 | O19: 0.3 | Q19: Doutorado I (DR-I) e Doutorado Direto III (DD III) | R19: 2929.8
I20: NÃO | K20: DD-II | L20: 2110.2 | M20: =L20*12*O20 -> 7596.72 | N20: =M20/12 -> 633.06 | O20: 0.3 | Q20: Doutorado II (DR-II) e Doutorado Direto IV (DD-IV) | R20: 3626.1
I21: NÃO | K21: DD-III | L21: 2929.8 | M21: =L21*12*O21 -> 10547.28 | N21: =M21/12 -> 878.94 | O21: 0.3 | Q21: Pós-Doutorado (PD-BR) | R21: 7174.8
I22: NÃO | K22: DD-IV | L22: 3626.1 | M22: =L22*12*O22 -> 13053.96 | N22: =M22/12 -> 1087.83 | O22: 0.3
I23: NÃO | K23: DR-I | L23: =L21 -> 2929.8 | M23: =L23*12*O23 -> 10547.28 | N23: =M23/12 -> 878.94 | O23: 0.3
I24: NÃO | K24: DR-II | L24: =L22 -> 3626.1 | M24: 13053.96 | N24: 1087.83 | O24: 0.3
I25: NÃO | K25: PD | L25: 7174.8 | M25: =L25*12*O25 -> 12914.64 | N25: =M25/12 -> 1076.22 | O25: 0.15
I26: NÃO
I27: NÃO
I28: NÃO
I29: NÃO
I30: NÃO
I31: NÃO
I32: NÃO
I33: NÃO
I34: NÃO | K34: TOTAL DA RESERVA TÉCNICA TEMÁTICO - ESTA ABA
I35: NÃO | K35: =SUM(G16:G41) -> 0
I36: NÃO
I37: NÃO | K37: TOTAL GERAL DA RESERVA TÉCNICA - JP
I38: NÃO | K38: ='9C-BOLSAS IC,MS,DD - JP'!L40 -> 0
I39: NÃO
I40: NÃO | K40: TOTAL GERAL DA RESERVA TÉCNICA DA BOLSAS
I41: NÃO | K41: =K35+K38 -> 0
B42: ='1-MPN'!B52 -> FAPESP, AGOSTO DE 2017
R71: Valores vigentes até 31/3/2016
R72: 579.3
R73: 1701.9
R74: 1806.6
R75: 2508.6
R76: 3104.7
R77: 6143.4 | S77: Valores vigentes até 31/3/2016 | T77: Valores vigentes a partir de 1º/4/2016
R78: Valores vigentes até 31/3/2016 | S78: 579.3 | T78: 643.2
R79: 366 | S79: 1701.9 | T79: 1889.4
R80: 731.4 | S80: 1806.6 | T80: 2005.5
R81: 1023.6 | S81: 2508.6 | T81: 2784.6
R82: 2587.2 | S82: 3104.7 | T82: 3446.4
R83: 4238.7 | S83: 6143.4 | T83: 6819.3
R84: 6143.4 | S84: Valores vigentes até 31/3/2016 | T84: Valores vigentes a partir de 1º/4/2016
R85: 585 | S85: 366 | T85: 406.5
R86: 877.2 | S86: 731.4 | T86: 812.1
R87: USD 1.200 | S87: 1023.6 | T87: 1136.4
R88: Valores vigentes até 31/3/2016 | S88: 2587.2 | T88: 2871.9
R89: 6980.4 | S89: 4238.7 | T89: 4705.2
R90: Valores vigentes até 31/3/2016 | S90: 6143.4 | T90: 6819.3
R91: 263.7 | S91: 585 | T91: 649.5
R92: 526.8 | S92: 877.2 | T92: 973.8
R93: 789.9 | S93: USD 1.200 | T93: USD 1.200
R94: 1052.4 | S94: Valores vigentes até 31/3/2016 | T94: Valores vigentes a partir de 1º/4/2016
R95: 1316.1 | S95: 6980.4 | T95: 7748.4
R96: 2104.8 | S96: Valores vigentes até 31/3/2016 | T96: Valores vigentes a partir de 1º/4/2016
R97: Valores vigentes até 31/3/2016 | S97: 263.7 | T97: 292.8
R98: 3372.9 | S98: 526.8 | T98: 585
R99: 4990.8 | S99: 789.9 | T99: 876.9
R100: 6980.4 | S100: 1052.4 | T100: 1168.2
R101: Valores vigentes até 31/3/2016 | S101: 1316.1 | T101: 1461
R102: 579.3 | S102: 2104.8 | T102: 2336.4
R103: 1701.9 | S103: Valores vigentes até 31/3/2016 | T103: Valores vigentes a partir de 1º/4/2016
R104: 2508.6 | S104: 3372.9 | T104: 3744
R105: 6143.4 | S105: 4990.8 | T105: 5539.8
S106: 6980.4 | T106: 7748.4
S107: Valores vigentes até 31/3/2016 | T107: Valores vigentes a partir de 1º/4/2016
S108: 579.3 | T108: 643.2
S109: 1701.9 | T109: 1889.4
S110: 2508.6 | T110: 2784.6
S111: 6143.4 | T111: 6819.3

Sheet CONSOLIDADA
K1: taxa do dólar
H2: Taxa do dólar do Banco Central do dia: | J2: =NOW() -> 2017-08-31T16:22:37.440 | K2: 3.1301
C4: IMPRESSÃO OBRIGATÓRIA | E4: PLANILHA DE TOTALIZAÇÃO DOS RECURSOS SOLICITADOS À FAPESP | F4: =IF('1-MPN'!B7="CLIQUE AQUI E SELECIONE A MODALIDADE DO AUXÍLIO SOLICITADO","SELECIONE O TIPO DE AUXÍLIO NA ABA 1-MPN",'1-MPN'!B7) -> SELECIONE O TIPO DE AUXÍLIO NA ABA 1-MPN | P4: CLIQUE AQUI E SELECIONE A MODALIDADE DO AUXÍLIO SOLICITADO
E5: ITENS SOLICITADOS | H5: Nacional | I5: Importado | P5: =$F$4 -> SELECIONE O TIPO DE AUXÍLIO NA ABA 1-MPN | S5: CÉLULA VARIÁVEL
E6: MATERIAL PERMANENTE | H6: ='1-MPN'!D15 ->  | I6: ='2-MPI'!D18 ->  | P6: AUXÍLIO À PESQUISA - PROJETO TEMÁTICO | S6: CÉLULAS FIXAS | U6: BC
E7: MATERIAL DE CONSUMO | H7: ='3-MCN'!D12 ->  | I7: ='4-MCI'!D18 ->  | P7: AUXÍLIO À PESQUISA - JOVENS PESQUISADORES | U7: 1
E8: SERVIÇOS DE TERCEIROS | H8: ='5-STB'!D12 ->  | I8: ='6-STE'!D17 ->  | P8: AUXÍLIO À PESQUISA - POLÍTICAS PÚBLICAS | U8: 2
E9: DESPESAS COM DIÁRIAS NO PAÍS E NO EXTERIOR | H9: ='8-DIP-DIE'!D12 ->  | I9: ='8-DIP-DIE'!K12 ->  | P9: AUXÍLIO À PESQUISA - REGULAR | U9: 3
E10: DESPESAS DE TRANSPORTE | H10: ='7-TRAN'!D13 ->  | P10: AUXÍLIO À PESQUISA - ENSINO PÚBLICO | U10: 4
E11: BOLSAS DE CAPACITAÇÃO TÉCNICA - VINCULADAS A TODOS OS AUXÍLIOS DESTA PLANILHA | H11: ='9a-BOLSAS - TT'!E13 ->  | U11: 5
E12: BOLSAS IC, DD E PD - VINCULADAS AO PROJETO TEMÁTICO | H12: ='9b-BOLSAS IC,DD,PD - TEMÁTICO'!C12 ->  | P12: BENEFÍCIOS COMPLEMENTARES | U12: 6
E13: BOLSAS IC, MS E DD VINCULADAS AO PROGRAMA JOVEM PESQUISADOR | H13: ='9C-BOLSAS IC,MS,DD - JP'!C12 ->  | P13: 8000 | Q13: OUTROS AUXÍLIOS | U13: 7
E14: RESERVA TÉCNICA DE IMPORTAÇÃO | I14: =IF(F4="MODALIDADE: CLIQUE AQUI E SELECIONE A MODALIDADE DO AUXÍLIO SOLICITADO","",SUM(I6:K8)*0.15) -> 0 | P14: 12000 | Q14: TEMATICO/JP | U14: 8
E15: RESERVA TÉCNICA PARA INFRAESTRUTURA DIRETA DO PROJETO | H15: =IF($P$5="CLIQUE AQUI E SELECIONE A MODALIDADE DO AUXÍLIO SOLICITADO",0,IF($P$5=$P$6,SUM($H$5:$H$10)*0.2,SUM($H$5:$H$10)*0.15)) -> 0 | I15: =IF(F4="MODALIDADE: CLIQUE AQUI E SELECIONE A MODALIDADE DO AUXÍLIO SOLICITADO","",IF(P5=P6,SUM(I6:K8)*0.2,SUM(I6:K8)*0.15)) -> 0 | N15: 116724.61 | U15: 9
E16: RESERVA TÉCNICA DAS BOLSAS ACADÊMICAS SOLICITADAS | H16: ='9b-BOLSAS IC,DD,PD - TEMÁTICO'!K41 -> 0 | N16: 16442.74 | U16: 10
E17: =IF($F$4="SELECIONE O TIPO DE AUXÍLIO NA ABA 1-MPN","Selecione o tipo de Auxílio na aba 1-MPN, onde está escrito: Clique Aqui e Selecione a Modalidade do Auxílio Solicitado.", IF(P5=P6,"Benefícios Complementares para PROJETOS TEMÁTICOS indique ao lado a quantidade de Pesquisadores Principais e na sequência, a duração do auxílio solicitado.", IF(P5=P7,"Benefícios Complementares para: AUXÍLIO À PESQUISA - JOVENS PESQUISADORES, indique apenas a duração em anos.", IF(P5=P10,"Benefícios Complementares para: AUXÍLIO À PESQUISA - ENSINO PÚBLICO, indique apenas a duração em anos.", IF(P5=P8,"Benefícios Complementares para: AUXÍLIO À PESQUISA - POLÍTICAS PÚBLICAS, indique apenas a duração em anos.", IF(P5=P9,"Benefícios Complementares para: AUXÍLIO À PESQUISA - REGULAR, indique apenas a duração em anos.",)))))) -> Selecione o tipo de Auxílio na aba 1-MPN, onde está escrito: Clique Aqui e Selecione a Modalidade do Auxílio Solicitado. | H17: =IF(P5=P6,SUM(P14*G17*F17),IF(P5=P7,SUM(P14*G17),SUM(P13*G17))) -> 0 | N17: 110242.74
E18: TOTAL DO PROCESSO | H18: =SUM(H6:H17) -> 0 | I18: =SUM(I6:K17) -> 0 | N18: 4600
E19: RESERVA TÉCNICA PARA INFRAESTRUTURA INSTITUCIONAL DE PESQUISA | H19: =IF(ISERROR(IF(F4="MODALIDADE: CLIQUE AQUI E SELECIONE A MODALIDADE DO AUXÍLIO SOLICITADO","",IF($P$5=$P$6,SUM($H$6:$H$10)*0.2,SUM($H$6:$H$10)*0.1))),"",IF(F4="MODALIDADE: G17CLIQUE AQUI E SELECIONE A MODALIDADE DO AUXÍLIO SOLICITADO","",IF($P$5=$P$6,SUM($H$6:$H$10)*0.2,SUM($H$6:$H$10)*0.1))) -> 0 | I19: =IF(ISERROR(IF(F4="MODALIDADE: CLIQUE AQUI E SELECIONE A MODALIDADE DO AUXÍLIO SOLICITADO","",IF($P$5=$P$6,SUM(I6:K9)*0.2,SUM($I$6:$K$9)*0.1))),"",IF(F4="MODALIDADE: CLIQUE AQUI E SELECIONE A MODALIDADE DO AUXÍLIO SOLICITADO","",IF($P$5=$P$6,SUM($I$6:$K$9)*0.2,SUM($I$6:$K$9)*0.1))) -> 0 | N19: =SUM(N15:N18) -> 248010.09
E21: TOTAL COM CONVERSÃO DO DÓLAR PARA REAL | H21: =H18+H19 -> 0 | I21: =(I18+I19)*K2 -> 0
E22: TOTAL GERAL (GRAND TOTAL) | H22: =IF(H21+I21=0,"",H21+I21) -> 
E23: ='9C-BOLSAS IC,MS,DD - JP'!B42 -> FAPESP, AGOSTO DE 2017
C28: TABELA INFORMATIVA PARA OS CÁLCULOS (www.fapesp.br/rt)
C29: Reserva Técnica para infraestrutura Direta do Projeto | F29: MODALIDADE | L29: Reserva Técnica para Infraestrutura Institucional de Pesquisa
C30: Valor | E30: Desembolso | L30: Valor | P30: Desembolso
C31: 0.15 | E31: Na outorga | F31: Auxílio à Pesquisa – Regular | L31: 0.1 | P31: Anual consolidado
C32: 0.2 | E32: Na outorga | F32: Auxílio à Pesquisa – Temático | L32: 0.2 | P32: Anual consolidado
C33: 0.15 | E33: Na outorga | F33: Auxílio à Pesquisa – Jovem Pesquisador | L33: 0.1 | P33: Anual consolidado
C34: 0.15 | E34: Na outorga | F34: Auxílio à Pesquisa – Pesq. em Políticas Públicas | L34: 0.1 | P34: Anual consolidado
C35: 0.15 | E35: Na outorga | F35: Auxílio à Pesquisa – Pesquisa para Melhoria do Ensino Público | L35: 0.1 | P35: Anual consolidado
